[Event "Late-Titled-Tuesday-Blitz-February-27-2024"]
[Site "Chess.com"]
[Date "2024.02.27"]
[Round "2"]
[White "DraningWaterHi"]
[Black "joksijoksi"]
[Result "0-1"]
[WhiteElo "2213"]
[BlackElo "2488"]
[TimeControl "180+1"]
[EndTime "14:18:23 PST"]
[Termination "joksijoksi won by resignation"]

1. d4 {[%clk 0:03:00.9]} 1... Nf6 {[%clk 0:02:53.6]} 2. c4 {[%clk 0:03:00.3]}
2... g6 {[%clk 0:02:53.8]} 3. Nf3 {[%clk 0:02:55.6]} 3... Bg7 {[%clk 0:02:53.5]}
4. Nc3 {[%clk 0:02:54.9]} 4... O-O {[%clk 0:02:49.6]} 5. g3 {[%clk 0:02:54.9]}
5... d5 {[%clk 0:02:44.7]} 6. cxd5 {[%clk 0:02:53.9]} 6... Nxd5 {[%clk
0:02:45.6]} 7. Bg2 {[%clk 0:02:54.5]} 7... Nc6 {[%clk 0:02:41.4]} 8. e4 {[%clk
0:02:49.6]} 8... Nxc3 {[%clk 0:02:41.1]} 9. bxc3 {[%clk 0:02:50.5]} 9... Bg4
{[%clk 0:02:38.7]} 10. h3 {[%clk 0:02:48.5]} 10... Bxf3 {[%clk 0:02:34.8]} 11.
Bxf3 {[%clk 0:02:48]} 11... e5 {[%clk 0:02:33.9]} 12. d5 {[%clk 0:02:48.1]}
12... Na5 {[%clk 0:02:27.7]} 13. O-O {[%clk 0:02:46.3]} 13... b6 {[%clk
0:02:27.2]} 14. Qd3 {[%clk 0:02:40.2]} 14... Nb7 {[%clk 0:02:26.3]} 15. Ba3
{[%clk 0:02:38.5]} 15... Re8 {[%clk 0:02:26.4]} 16. h4 {[%clk 0:02:36.8]} 16...
h5 {[%clk 0:02:25.5]} 17. Kg2 {[%clk 0:02:36.4]} 17... Bf8 {[%clk 0:02:15.8]}
18. Bb2 {[%clk 0:02:31.3]} 18... Nc5 {[%clk 0:02:14]} 19. Qc4 {[%clk 0:02:29.4]}
19... a6 {[%clk 0:02:09.2]} 20. a4 {[%clk 0:02:28.3]} 20... a5 {[%clk
0:02:08.7]} 21. Ba3 {[%clk 0:02:27.3]} 21... Bd6 {[%clk 0:02:07.8]} 22. Bxc5
{[%clk 0:02:26]} 22... Bxc5 {[%clk 0:02:07.5]} 23. Rad1 {[%clk 0:02:24.3]} 23...
Qd6 {[%clk 0:02:07]} 24. Qb5 {[%clk 0:02:22.6]} 24... Rf8 {[%clk 0:02:04.9]} 25.
Qc6 {[%clk 0:02:15.9]} 25... Rad8 {[%clk 0:02:03]} 26. Be2 {[%clk 0:02:03.6]}
26... Qe7 {[%clk 0:02:02.1]} 27. Qb5 {[%clk 0:01:52.7]} 27... Rd6 {[%clk
0:02:00.8]} 28. Rde1 {[%clk 0:01:45.6]} 28... Kh7 {[%clk 0:02:00]} 29. Bd3
{[%clk 0:01:44.7]} 29... Rg8 {[%clk 0:01:56.6]} 30. c4 {[%clk 0:01:43.7]} 30...
g5 {[%clk 0:01:56]} 31. hxg5 {[%clk 0:01:41.5]} 31... Qxg5 {[%clk 0:01:56]} 32.
Rh1 {[%clk 0:01:40.4]} 32... h4 {[%clk 0:01:44.5]} 33. Rh3 {[%clk 0:01:34.8]}
33... Rh6 {[%clk 0:01:43.5]} 34. Reh1 {[%clk 0:01:33.7]} 34... Bxf2 {[%clk
0:01:33.7]} 35. Qd7 {[%clk 0:01:24.2]} 35... Bxg3 {[%clk 0:01:28.4]} 36. Qxf7+
{[%clk 0:01:23.6]} 36... Rg7 {[%clk 0:01:28.4]} 37. Qf5+ {[%clk 0:01:22.7]}
37... Qxf5 {[%clk 0:01:23.1]} 38. exf5 {[%clk 0:01:22.8]} 38... Bf4+ {[%clk
0:01:22.4]} 39. Kf3 {[%clk 0:01:22.7]} 39... Rg3+ {[%clk 0:01:18.4]} 40. Rxg3
{[%clk 0:01:22.1]} 40... Bxg3 {[%clk 0:01:18.1]} 41. Kg4 {[%clk 0:01:16.2]}
41... Kg7 {[%clk 0:01:17.3]} 42. Be4 {[%clk 0:01:15.1]} 42... Kf6 {[%clk
0:01:17.1]} 43. Kh3 {[%clk 0:01:11.4]} 43... Rh8 {[%clk 0:01:16.2]} 44. Rg1
{[%clk 0:01:10.8]} 44... Rg8 {[%clk 0:01:15.2]} 45. Rg2 {[%clk 0:01:10.2]} 45...
Rg5 {[%clk 0:01:13.9]} 46. Rg1 {[%clk 0:01:05]} 46... Rxf5 {[%clk 0:01:00.9]}
47. Bxf5 {[%clk 0:01:05]} 47... Kxf5 {[%clk 0:01:01.1]} 48. Rf1+ {[%clk
0:01:02.6]} 48... Ke4 {[%clk 0:00:59.9]} 49. Rf7 {[%clk 0:01:02.4]} 49... Kd3
{[%clk 0:01:00]} 50. Rxc7 {[%clk 0:01:02.1]} 50... e4 {[%clk 0:01:00.4]} 51. Rc6
{[%clk 0:01:01.5]} 51... e3 {[%clk 0:00:47.8]} 52. Re6 {[%clk 0:00:57.5]} 52...
e2 {[%clk 0:00:45.5]} 53. d6 {[%clk 0:00:57.1]} 53... Kd2 {[%clk 0:00:29.8]} 54.
d7 {[%clk 0:00:47.9]} 54... Bc7 {[%clk 0:00:30]} 55. Rd6+ {[%clk 0:00:20.5]}
55... Bxd6 {[%clk 0:00:23.4]} 56. d8=Q {[%clk 0:00:20.5]} 56... e1=Q {[%clk
0:00:23.4]} 57. Qxd6+ {[%clk 0:00:20.6]} 57... Kc2 {[%clk 0:00:21.2]} 58. Qg6+
{[%clk 0:00:18.9]} 58... Kb3 {[%clk 0:00:18.2]} 59. Qxb6+ {[%clk 0:00:18.1]}
59... Ka2 {[%clk 0:00:16.3]} 60. Qg6 {[%clk 0:00:17]} 60... Qh1+ {[%clk
0:00:15.1]} 61. Kg4 {[%clk 0:00:15.5]} 61... Qg1+ {[%clk 0:00:15.4]} 62. Kf5
{[%clk 0:00:15.3]} 62... Qxg6+ {[%clk 0:00:16.3]} 63. Kxg6 {[%clk 0:00:16.2]}
63... h3 {[%clk 0:00:16.5]} 64. c5 {[%clk 0:00:17.1]} 64... h2 {[%clk
0:00:17.2]} 65. c6 {[%clk 0:00:18]} 65... h1=Q {[%clk 0:00:17.3]} 66. c7 {[%clk
0:00:18.9]} 66... Qc6+ {[%clk 0:00:17.2]} 0-1

[Event "Late-Titled-Tuesday-Blitz-February-27-2024"]
[Site "Chess.com"]
[Date "2024.02.27"]
[Round "2"]
[White "Djager97"]
[Black "dealshark"]
[Result "1-0"]
[WhiteElo "2623"]
[BlackElo "2369"]
[TimeControl "180+1"]
[EndTime "14:18:26 PST"]
[Termination "Djager97 won on time"]

1. e4 {[%clk 0:03:00.9]} 1... c6 {[%clk 0:02:41.7]} 2. d4 {[%clk 0:02:57.7]}
2... d5 {[%clk 0:02:42.1]} 3. exd5 {[%clk 0:02:58.6]} 3... cxd5 {[%clk
0:02:42.4]} 4. Bd3 {[%clk 0:02:59]} 4... Nc6 {[%clk 0:02:43]} 5. c3 {[%clk
0:02:59]} 5... Qc7 {[%clk 0:02:43.6]} 6. h3 {[%clk 0:02:58.6]} 6... g6 {[%clk
0:02:43.2]} 7. Nf3 {[%clk 0:02:58.7]} 7... Bf5 {[%clk 0:02:43.5]} 8. Be2 {[%clk
0:02:57.8]} 8... Nf6 {[%clk 0:02:43.2]} 9. Be3 {[%clk 0:02:56.8]} 9... Bg7
{[%clk 0:02:43.6]} 10. Nbd2 {[%clk 0:02:56.5]} 10... O-O {[%clk 0:02:43.9]} 11.
O-O {[%clk 0:02:57.1]} 11... Rfe8 {[%clk 0:02:43.6]} 12. Qc1 {[%clk 0:02:57.1]}
12... Ne4 {[%clk 0:02:42]} 13. Re1 {[%clk 0:02:54.7]} 13... Rad8 {[%clk
0:02:38.7]} 14. Nxe4 {[%clk 0:02:52.9]} 14... dxe4 {[%clk 0:02:29.5]} 15. Bf4
{[%clk 0:02:47.2]} 15... e5 {[%clk 0:02:27.2]} 16. Nxe5 {[%clk 0:02:46]} 16...
Nxe5 {[%clk 0:02:26]} 17. Bxe5 {[%clk 0:02:45.5]} 17... Bxe5 {[%clk 0:02:25.8]}
18. dxe5 {[%clk 0:02:45.9]} 18... Qxe5 {[%clk 0:02:20.7]} 19. Qe3 {[%clk
0:02:45.3]} 19... a6 {[%clk 0:02:19]} 20. Rad1 {[%clk 0:02:37.5]} 20... b5
{[%clk 0:02:18.9]} 21. a3 {[%clk 0:02:33.3]} 21... h5 {[%clk 0:02:03.5]} 22. h4
{[%clk 0:02:32.4]} 22... Qf6 {[%clk 0:02:02.6]} 23. g3 {[%clk 0:02:32.1]} 23...
Qc6 {[%clk 0:01:49.1]} 24. Rd4 {[%clk 0:02:30.1]} 24... Rxd4 {[%clk 0:01:48.3]}
25. cxd4 {[%clk 0:02:22.2]} 25... Qc2 {[%clk 0:01:44.4]} 26. b4 {[%clk
0:02:05.7]} 26... Rc8 {[%clk 0:01:43.6]} 27. d5 {[%clk 0:01:57.1]} 27... Qc3
{[%clk 0:01:43.8]} 28. Qxc3 {[%clk 0:01:17.6]} 28... Rxc3 {[%clk 0:01:44.7]} 29.
Ra1 {[%clk 0:01:17.9]} 29... Rc2 {[%clk 0:01:35.5]} 30. Kf1 {[%clk 0:01:12.6]}
30... Rd2 {[%clk 0:01:33.5]} 31. a4 {[%clk 0:00:52.8]} 31... Rxd5 {[%clk
0:01:30.7]} 32. axb5 {[%clk 0:00:51.7]} 32... axb5 {[%clk 0:01:31.6]} 33. Ra8+
{[%clk 0:00:49.1]} 33... Kg7 {[%clk 0:01:31.3]} 34. Rb8 {[%clk 0:00:50]} 34...
Bd7 {[%clk 0:01:28.1]} 35. Rb6 {[%clk 0:00:49.6]} 35... Kf8 {[%clk 0:01:22.9]}
36. Ke1 {[%clk 0:00:45.8]} 36... Ke7 {[%clk 0:01:22.2]} 37. Bf1 {[%clk 0:00:46]}
37... Rd4 {[%clk 0:01:14.3]} 38. Rb7 {[%clk 0:00:38.8]} 38... Rxb4 {[%clk
0:01:11.6]} 39. Bh3 {[%clk 0:00:38.1]} 39... f5 {[%clk 0:01:11.8]} 40. Ke2
{[%clk 0:00:36.7]} 40... Kd6 {[%clk 0:01:06]} 41. Ke3 {[%clk 0:00:36.4]} 41...
Rb3+ {[%clk 0:00:57]} 42. Ke2 {[%clk 0:00:21.9]} 42... b4 {[%clk 0:00:42.9]} 43.
Rb8 {[%clk 0:00:22.1]} 43... Rb2+ {[%clk 0:00:37.5]} 44. Ke3 {[%clk 0:00:22]}
44... Kc5 {[%clk 0:00:28]} 45. Rd8 {[%clk 0:00:16.2]} 45... Bb5 {[%clk 0:00:24]}
46. Rc8+ {[%clk 0:00:15.6]} 46... Bc6 {[%clk 0:00:23.5]} 47. Rg8 {[%clk
0:00:11.7]} 47... b3 {[%clk 0:00:23.3]} 48. Rxg6 {[%clk 0:00:12.1]} 48... Rc2
{[%clk 0:00:21.3]} 49. Bxf5 {[%clk 0:00:11.2]} 49... b2 {[%clk 0:00:21]} 50.
Rxc6+ {[%clk 0:00:11.9]} 50... Kb4 {[%clk 0:00:07.8]} 51. Rb6+ {[%clk
0:00:04.7]} 51... Kc5 {[%clk 0:00:02]} 52. Rb8 {[%clk 0:00:04.3]} 52... b1=Q
{[%clk 0:00:02]} 53. Rxb1 {[%clk 0:00:03.7]} 1-0

[Event "Late-Titled-Tuesday-Blitz-February-27-2024"]
[Site "Chess.com"]
[Date "2024.02.27"]
[Round "2"]
[White "DeArron_Fox"]
[Black "HeinichessPY"]
[Result "0-1"]
[WhiteElo "2476"]
[BlackElo "2242"]
[TimeControl "180+1"]
[EndTime "14:18:26 PST"]
[Termination "HeinichessPY won on time"]

1. d4 {[%clk 0:03:00.9]} 1... Nf6 {[%clk 0:02:55.9]} 2. c4 {[%clk 0:02:59.9]}
2... e6 {[%clk 0:02:55.6]} 3. Nf3 {[%clk 0:02:59.2]} 3... Bb4+ {[%clk
0:02:55.4]} 4. Bd2 {[%clk 0:02:58.8]} 4... a5 {[%clk 0:02:52.6]} 5. g3 {[%clk
0:02:58.7]} 5... b6 {[%clk 0:02:52.1]} 6. Bg2 {[%clk 0:02:58.9]} 6... Bb7 {[%clk
0:02:52.4]} 7. O-O {[%clk 0:02:59]} 7... O-O {[%clk 0:02:51]} 8. Bf4 {[%clk
0:02:59.2]} 8... Re8 {[%clk 0:02:45.6]} 9. c5 {[%clk 0:02:53.7]} 9... a4 {[%clk
0:02:33.2]} 10. a3 {[%clk 0:02:45.6]} 10... Ba5 {[%clk 0:02:32.9]} 11. Qxa4
{[%clk 0:02:46]} 11... bxc5 {[%clk 0:02:32.3]} 12. dxc5 {[%clk 0:02:35.3]} 12...
Nd5 {[%clk 0:02:19.6]} 13. Qc4 {[%clk 0:02:09.3]} 13... Ba6 {[%clk 0:02:05.7]}
14. Qe4 {[%clk 0:01:29.2]} 14... f5 {[%clk 0:01:57.1]} 15. Qc2 {[%clk
0:01:22.5]} 15... Nxf4 {[%clk 0:01:42.6]} 16. gxf4 {[%clk 0:01:23.4]} 16... c6
{[%clk 0:01:38.9]} 17. Rd1 {[%clk 0:01:21.9]} 17... Bc7 {[%clk 0:01:38.5]} 18.
e3 {[%clk 0:01:21]} 18... Qf6 {[%clk 0:01:37.3]} 19. Nc3 {[%clk 0:01:10]} 19...
Bc4 {[%clk 0:01:36.1]} 20. Nd2 {[%clk 0:00:49.7]} 20... Bd5 {[%clk 0:01:30.1]}
21. f3 {[%clk 0:00:22.8]} 21... g5 {[%clk 0:01:24.7]} 22. Nxd5 {[%clk
0:00:07.2]} 22... exd5 {[%clk 0:01:22.4]} 23. fxg5 {[%clk 0:00:07.8]} 23... Qxg5
{[%clk 0:01:22.7]} 24. f4 {[%clk 0:00:08.4]} 24... Qe7 {[%clk 0:01:09.2]} 25.
Qxf5 {[%clk 0:00:06.3]} 25... Qxe3+ {[%clk 0:01:04.8]} 26. Kh1 {[%clk
0:00:06.9]} 26... Qxf4 {[%clk 0:01:05.1]} 27. Qxf4 {[%clk 0:00:03.5]} 27... Bxf4
{[%clk 0:01:06]} 28. Nf3 {[%clk 0:00:02.4]} 28... Re2 {[%clk 0:00:58.3]} 29. b4
{[%clk 0:00:02.4]} 29... Na6 {[%clk 0:00:56.6]} 30. Nd4 {[%clk 0:00:03.1]} 30...
Re5 {[%clk 0:00:36.6]} 31. b5 {[%clk 0:00:03.3]} 31... Nxc5 {[%clk 0:00:35.4]}
32. bxc6 {[%clk 0:00:03.4]} 32... dxc6 {[%clk 0:00:32.9]} 33. Nxc6 {[%clk
0:00:04.3]} 33... Rh5 {[%clk 0:00:33.3]} 34. Ne7+ {[%clk 0:00:02.3]} 34... Kf7
{[%clk 0:00:29.9]} 35. Nxd5 {[%clk 0:00:02.7]} 35... Bxh2 {[%clk 0:00:26.8]} 36.
Bf3 {[%clk 0:00:03.3]} 36... Rh6 {[%clk 0:00:21.1]} 37. Kg2 {[%clk 0:00:03.3]}
37... Rg8+ {[%clk 0:00:21.4]} 38. Kf2 {[%clk 0:00:03.3]} 38... Bg3+ {[%clk
0:00:21.5]} 39. Ke3 {[%clk 0:00:02.1]} 39... Re6+ {[%clk 0:00:20.8]} 40. Kd4
{[%clk 0:00:02.3]} 40... Nb3+ {[%clk 0:00:20.3]} 41. Kc4 {[%clk 0:00:02.7]}
41... Nxa1 {[%clk 0:00:20.6]} 42. Rxa1 {[%clk 0:00:03.6]} 42... Rc8+ {[%clk
0:00:20.6]} 43. Kd3 {[%clk 0:00:03.7]} 43... Rd8 {[%clk 0:00:20.6]} 44. Rf1
{[%clk 0:00:03.4]} 44... Rf6 {[%clk 0:00:18.6]} 45. Bh5+ {[%clk 0:00:02.3]}
45... Kg7 {[%clk 0:00:18.3]} 46. Rxf6 {[%clk 0:00:01.5]} 46... Rxd5+ {[%clk
0:00:18.6]} 47. Kc4 {[%clk 0:00:02.4]} 47... Rxh5 {[%clk 0:00:16.7]} 48. Rf3
{[%clk 0:00:03]} 48... Rh4+ {[%clk 0:00:17.1]} 49. Kb5 {[%clk 0:00:02.1]} 49...
Rg4 {[%clk 0:00:18]} 50. a4 {[%clk 0:00:02.4]} 50... h5 {[%clk 0:00:18.3]} 51.
a5 {[%clk 0:00:03.1]} 51... h4 {[%clk 0:00:15.2]} 52. a6 {[%clk 0:00:03.5]}
52... Rg5+ {[%clk 0:00:15.6]} 53. Kc6 {[%clk 0:00:02.6]} 53... Rg6+ {[%clk
0:00:15.8]} 54. Kb7 {[%clk 0:00:02.8]} 54... Kh6 {[%clk 0:00:14.1]} 55. a7
{[%clk 0:00:02.8]} 55... Rg7+ {[%clk 0:00:14.4]} 56. Kc8 {[%clk 0:00:01.9]}
56... Rg8+ {[%clk 0:00:14.7]} 57. Kb7 {[%clk 0:00:02.6]} 57... Rg7+ {[%clk
0:00:15.2]} 58. Kc8 {[%clk 0:00:02.6]} 58... Rxa7 {[%clk 0:00:15.2]} 59. Rf6+
{[%clk 0:00:02]} 59... Kg5 {[%clk 0:00:14.9]} 60. Rf8 {[%clk 0:00:02.1]} 60...
Ra8+ {[%clk 0:00:14.9]} 0-1

[Event "Late-Titled-Tuesday-Blitz-February-27-2024"]
[Site "Chess.com"]
[Date "2024.02.27"]
[Round "2"]
[White "lucasran"]
[Black "Andreikka"]
[Result "1/2-1/2"]
[WhiteElo "2614"]
[BlackElo "2954"]
[TimeControl "180+1"]
[EndTime "14:18:33 PST"]
[Termination "Game drawn by agreement"]

1. Nf3 {[%clk 0:02:59.9]} 1... Nf6 {[%clk 0:02:54.2]} 2. c4 {[%clk 0:03:00.2]}
2... e6 {[%clk 0:02:52.8]} 3. g3 {[%clk 0:03:00.5]} 3... a6 {[%clk 0:02:52.8]}
4. Nc3 {[%clk 0:02:56.6]} 4... d5 {[%clk 0:02:51.1]} 5. cxd5 {[%clk 0:02:54.5]}
5... exd5 {[%clk 0:02:51.3]} 6. d4 {[%clk 0:02:55.1]} 6... h6 {[%clk 0:02:46.1]}
7. Bg2 {[%clk 0:02:54.5]} 7... Bd6 {[%clk 0:02:45.4]} 8. O-O {[%clk 0:02:54.9]}
8... O-O {[%clk 0:02:43.6]} 9. Bf4 {[%clk 0:02:55.1]} 9... Bxf4 {[%clk
0:02:41.2]} 10. gxf4 {[%clk 0:02:56]} 10... Nc6 {[%clk 0:02:41.8]} 11. e3 {[%clk
0:02:56.3]} 11... Ne7 {[%clk 0:02:42.2]} 12. Ne5 {[%clk 0:02:54.5]} 12... c6
{[%clk 0:02:41.7]} 13. Rc1 {[%clk 0:02:53]} 13... Nf5 {[%clk 0:02:41.6]} 14. Ne2
{[%clk 0:02:26.4]} 14... Ne4 {[%clk 0:02:29.5]} 15. Ng3 {[%clk 0:02:25.2]} 15...
Ned6 {[%clk 0:02:26.7]} 16. Nf3 {[%clk 0:02:11.2]} 16... f6 {[%clk 0:02:23.4]}
17. b4 {[%clk 0:02:06.1]} 17... Qe7 {[%clk 0:02:22]} 18. Qb3 {[%clk 0:02:06.2]}
18... Kh8 {[%clk 0:02:21]} 19. a4 {[%clk 0:02:05.6]} 19... g5 {[%clk 0:02:20.4]}
20. fxg5 {[%clk 0:01:58]} 20... hxg5 {[%clk 0:02:19.6]} 21. Rfe1 {[%clk
0:01:58.4]} 21... Be6 {[%clk 0:02:14.5]} 22. Qb1 {[%clk 0:01:56.4]} 22... Qh7
{[%clk 0:02:05.6]} 23. Nd2 {[%clk 0:01:53.6]} 23... Rae8 {[%clk 0:01:53.8]} 24.
Nxf5 {[%clk 0:01:29.2]} 24... Bxf5 {[%clk 0:01:52.3]} 25. Qb3 {[%clk 0:01:29.2]}
25... Kg7 {[%clk 0:01:51.6]} 26. b5 {[%clk 0:01:18.9]} 26... axb5 {[%clk
0:01:47.4]} 27. axb5 {[%clk 0:01:19.2]} 27... Nxb5 {[%clk 0:01:43.4]} 28. Bxd5
{[%clk 0:01:19.4]} 28... Rh8 {[%clk 0:01:43.1]} 29. Nf1 {[%clk 0:01:19.3]} 29...
Bd3 {[%clk 0:01:31.2]} 30. Bg2 {[%clk 0:00:47.1]} 30... Nd6 {[%clk 0:01:13.4]}
31. e4 {[%clk 0:00:45]} 31... Bxf1 {[%clk 0:01:06]} 32. Kxf1 {[%clk 0:00:45.2]}
32... Qxh2 {[%clk 0:01:06.5]} 33. e5 {[%clk 0:00:43.2]} 33... fxe5 {[%clk
0:01:05.2]} 34. dxe5 {[%clk 0:00:44.1]} 34... Rxe5 {[%clk 0:01:04.2]} 35. Qb2
{[%clk 0:00:38.6]} 35... Re8 {[%clk 0:00:58]} 36. Rcd1 {[%clk 0:00:39.2]} 36...
Nf7 {[%clk 0:00:39.8]} 37. Rd7 {[%clk 0:00:32.3]} 37... Kg8 {[%clk 0:00:39.2]}
38. Rxe5 {[%clk 0:00:27.5]} 38... Qxe5 {[%clk 0:00:30.3]} 39. Qxe5 {[%clk
0:00:26.1]} 39... Nxe5 {[%clk 0:00:30.1]} 40. Rxb7 {[%clk 0:00:25.3]} 40... Kf8
{[%clk 0:00:29.1]} 41. Rc7 {[%clk 0:00:25.3]} 41... Re6 {[%clk 0:00:22.8]} 42.
Be4 {[%clk 0:00:20.2]} 42... Ke8 {[%clk 0:00:13.1]} 43. Rg7 {[%clk 0:00:20.3]}
43... g4 {[%clk 0:00:12.2]} 44. Bf5 {[%clk 0:00:19.8]} 44... Rf6 {[%clk
0:00:11.2]} 45. Bxg4 {[%clk 0:00:18.8]} 45... c5 {[%clk 0:00:09.6]} 46. Rg5
{[%clk 0:00:19.1]} 46... Nd3 {[%clk 0:00:05.3]} 47. Rf5 {[%clk 0:00:10.7]} 47...
Rd6 {[%clk 0:00:05.6]} 48. Be2 {[%clk 0:00:11]} 48... c4 {[%clk 0:00:05.6]} 49.
Bxd3 {[%clk 0:00:11.4]} 49... Rxd3 {[%clk 0:00:06.3]} 50. Rc5 {[%clk 0:00:11.1]}
50... Rd4 {[%clk 0:00:06.9]} 51. Ke2 {[%clk 0:00:11.4]} 51... Kd7 {[%clk
0:00:07.6]} 52. Ke3 {[%clk 0:00:11.8]} 52... Rd3+ {[%clk 0:00:04.9]} 53. Ke4
{[%clk 0:00:12.3]} 53... Rd2 {[%clk 0:00:05.5]} 54. Rxc4 {[%clk 0:00:12.5]}
54... Rxf2 {[%clk 0:00:06.1]} 55. Rd4+ {[%clk 0:00:13.2]} 55... Ke6 {[%clk
0:00:06.4]} 56. Ke3 {[%clk 0:00:13.5]} 56... Rh2 {[%clk 0:00:06.3]} 57. Re4+
{[%clk 0:00:13.9]} 57... Kd5 {[%clk 0:00:06.8]} 58. Rd4+ {[%clk 0:00:14.4]}
58... Kc5 {[%clk 0:00:07.4]} 59. Re4 {[%clk 0:00:12.6]} 1/2-1/2

[Event "Late-Titled-Tuesday-Blitz-February-27-2024"]
[Site "Chess.com"]
[Date "2024.02.27"]
[Round "2"]
[White "YQPerez"]
[Black "delqate"]
[Result "1-0"]
[WhiteElo "2836"]
[BlackElo "2403"]
[TimeControl "180+1"]
[EndTime "14:18:33 PST"]
[Termination "YQPerez won on time"]

1. e4 {[%clk 0:03:00.9]} 1... d5 {[%clk 0:03:00.2]} 2. exd5 {[%clk 0:02:59.3]}
2... Qxd5 {[%clk 0:03:01.1]} 3. Nf3 {[%clk 0:02:59.5]} 3... Bg4 {[%clk
0:03:00.4]} 4. Be2 {[%clk 0:02:59.7]} 4... Nc6 {[%clk 0:03:00.3]} 5. d4 {[%clk
0:02:59.3]} 5... O-O-O {[%clk 0:03:00.4]} 6. Be3 {[%clk 0:02:55.9]} 6... e5
{[%clk 0:03:00.4]} 7. c3 {[%clk 0:02:54]} 7... Nf6 {[%clk 0:02:46.9]} 8. O-O
{[%clk 0:02:50]} 8... exd4 {[%clk 0:02:36.9]} 9. cxd4 {[%clk 0:02:49.1]} 9... h5
{[%clk 0:02:30.6]} 10. Nc3 {[%clk 0:02:48.9]} 10... Qa5 {[%clk 0:02:29.9]} 11.
Rc1 {[%clk 0:02:35.3]} 11... Bd6 {[%clk 0:02:20.4]} 12. h3 {[%clk 0:02:30.4]}
12... Kb8 {[%clk 0:02:10.2]} 13. Ng5 {[%clk 0:02:22.2]} 13... Bxe2 {[%clk
0:01:58.8]} 14. Nxe2 {[%clk 0:02:17.6]} 14... Qxa2 {[%clk 0:01:50.1]} 15. Nc3
{[%clk 0:02:13.2]} 15... Qxb2 {[%clk 0:01:35.6]} 16. Nxf7 {[%clk 0:02:09.3]}
16... Rhf8 {[%clk 0:01:27.6]} 17. Nxd8 {[%clk 0:02:08.6]} 17... Rxd8 {[%clk
0:01:28.5]} 18. Na4 {[%clk 0:02:05.3]} 18... Qa3 {[%clk 0:01:22.8]} 19. Rc3
{[%clk 0:01:45.5]} 19... Qa2 {[%clk 0:01:10.3]} 20. Nc5 {[%clk 0:01:28.2]} 20...
Nd5 {[%clk 0:01:03.4]} 21. Rc2 {[%clk 0:01:27.3]} 21... Qa3 {[%clk 0:00:54.4]}
22. Qf3 {[%clk 0:01:22.3]} 22... Ncb4 {[%clk 0:00:42]} 23. Rcc1 {[%clk
0:01:10.9]} 23... Bxc5 {[%clk 0:00:15.8]} 24. Rxc5 {[%clk 0:01:02.3]} 24... b6
{[%clk 0:00:10.1]} 25. Rcc1 {[%clk 0:01:01.8]} 25... a5 {[%clk 0:00:09]} 26. Kh1
{[%clk 0:00:47]} 26... Qd3 {[%clk 0:00:07.9]} 27. Qxh5 {[%clk 0:00:34.6]} 27...
Nxe3 {[%clk 0:00:04]} 28. fxe3 {[%clk 0:00:30]} 28... Qxe3 {[%clk 0:00:04]} 29.
Qf7 {[%clk 0:00:21.1]} 29... Nd5 {[%clk 0:00:03.4]} 30. Rfe1 {[%clk 0:00:19]}
30... Qxd4 {[%clk 0:00:03.1]} 31. Red1 {[%clk 0:00:18.5]} 31... Qf6 {[%clk
0:00:02.9]} 32. Qh5 {[%clk 0:00:13.4]} 32... c6 {[%clk 0:00:02.9]} 33. Rb1
{[%clk 0:00:09.8]} 33... Kc7 {[%clk 0:00:03]} 34. Qe2 {[%clk 0:00:09.1]} 34...
Qd6 {[%clk 0:00:03.1]} 35. Qf2 {[%clk 0:00:08.4]} 35... Rb8 {[%clk 0:00:03.6]}
36. Qf7+ {[%clk 0:00:05.9]} 36... Qd7 {[%clk 0:00:04.1]} 37. Qf2 {[%clk
0:00:06]} 37... Qd6 {[%clk 0:00:04.4]} 38. Re1 {[%clk 0:00:06.1]} 38... Qd7
{[%clk 0:00:04.7]} 39. Qg3+ {[%clk 0:00:06.3]} 39... Qd6 {[%clk 0:00:04.5]} 40.
Qxg7+ {[%clk 0:00:06.6]} 40... Qd7 {[%clk 0:00:04.5]} 41. Qg3+ {[%clk
0:00:06.6]} 41... Qd6 {[%clk 0:00:04.1]} 42. Qf2 {[%clk 0:00:07.3]} 42... b5
{[%clk 0:00:04.3]} 43. Re4 {[%clk 0:00:07.5]} 43... b4 {[%clk 0:00:03.7]} 44.
Qa7+ {[%clk 0:00:07.5]} 44... Rb7 {[%clk 0:00:03.8]} 45. Qxa5+ {[%clk
0:00:07.9]} 45... Kd7 {[%clk 0:00:04.3]} 46. Rf1 {[%clk 0:00:07.6]} 46... b3
{[%clk 0:00:04.2]} 47. Rf7+ {[%clk 0:00:07.8]} 47... Ne7 {[%clk 0:00:03.3]} 48.
Rfxe7+ {[%clk 0:00:07.8]} 48... Qxe7 {[%clk 0:00:04.2]} 49. Rxe7+ {[%clk
0:00:06.8]} 49... Kxe7 {[%clk 0:00:05.1]} 50. Qe1+ {[%clk 0:00:06.9]} 50... Kd7
{[%clk 0:00:05.7]} 51. Qd2+ {[%clk 0:00:06.4]} 51... Kc7 {[%clk 0:00:05.6]} 52.
Qb2 {[%clk 0:00:06.4]} 52... c5 {[%clk 0:00:06]} 53. h4 {[%clk 0:00:07]} 53...
Kc6 {[%clk 0:00:06.7]} 54. h5 {[%clk 0:00:07.5]} 54... c4 {[%clk 0:00:07.4]} 55.
g4 {[%clk 0:00:06.6]} 55... Kc5 {[%clk 0:00:08]} 56. h6 {[%clk 0:00:07.3]} 56...
Kb4 {[%clk 0:00:08.6]} 57. Qd4 {[%clk 0:00:05.6]} 57... Ka3 {[%clk 0:00:08]} 58.
Qxc4 {[%clk 0:00:05.3]} 58... b2 {[%clk 0:00:08.5]} 59. Qa6+ {[%clk 0:00:05.2]}
1-0